bitfinex/quotes_BTCUSD_20250711
["timestamp","ask_amount","ask_price","bid_price","bid_amount"]
[1752264193299,0.46061032,117800.0,117780.0,0.0201226]
[1752264193505,0.44336947,117790.0,117780.0,0.0201226]
[1752264193937,0.44336947,117790.0,117780.0,0.1518426]
[1752264194137,0.44336947,117790.0,117780.0,0.16704686]
[1752264195353,0.45840583,117800.0,117780.0,0.16704686]
[1752264196224,0.01454085,117790.0,117780.0,0.18214686]
[1752264196457,0.01454085,117790.0,117780.0,0.18002426]
[1752264197919,0.45791032,117790.0,117780.0,0.14932426]
[1752264198947,0.44336947,117790.0,117780.0,0.14932426]
[1752264200653,0.44336947,117790.0,117780.0,0.15144686]
[1752264202330,0.01965551,117800.0,117780.0,0.15144686]
[1752264202552,0.44336947,117790.0,117780.0,0.15144686]
[1752264205135,0.44336947,117790.0,117780.0,0.35492686]
[1752264205343,0.44336947,117790.0,117780.0,0.35280426]
[1752264206799,0.44336947,117790.0,117780.0,0.35276426]
[1752264207847,0.44642947,117790.0,117780.0,0.35276426]
[1752264209130,0.44712947,117790.0,117780.0,0.35276426]
[1752264209331,0.44406947,117790.0,117780.0,0.35276426]
[1752264211050,0.44712947,117790.0,117780.0,0.35276426]
[1752264214988,0.44908947,117790.0,117780.0,0.35276426]
[1752264215199,0.46508947,117790.0,117780.0,0.35276426]
[1752264215644,0.48148947,117790.0,117780.0,0.35276426]
[1752264216627,0.46508947,117790.0,117780.0,0.35276426]
[1752264216844,0.44908947,117790.0,117780.0,0.35276426]
[1752264219048,0.46528947,117790.0,117780.0,0.35276426]
[1752264219260,0.48118947,117790.0,117780.0,0.35276426]
[1752264221280,0.03782,117790.0,117780.0,0.35276426]
[1752264221502,0.48118947,117790.0,117780.0,0.35276426]
[1752264226573,0.46989195,117790.0,117780.0,0.35276426]
[1752264228377,0.46989195,117790.0,117780.0,0.35473426]
[1752264231706,0.47294195,117790.0,117780.0,0.34305122]
[1752264231965,0.44336947,117790.0,117780.0,0.34305122]
[1752264232388,0.44336947,117790.0,117780.0,0.34601122]
[1752264233366,0.00049551,117800.0,117780.0,0.37811122]
[1752264233585,0.00049551,117800.0,117790.0,0.02138242]
[1752264233784,0.00049551,117800.0,117790.0,0.07717578]
[1752264234185,0.44386498,117800.0,117790.0,0.07717578]
[1752264234734,0.44386498,117800.0,117790.0,0.08609431]
[1752264235322,0.44386498,117800.0,117790.0,0.08709431]
[1752264236071,0.44486498,117800.0,117790.0,0.08709431]
[1752264236326,0.44386498,117800.0,117790.0,0.08709431]
[1752264236734,0.44386498,117800.0,117790.0,0.08909431]
[1752264237706,0.44386498,117800.0,117790.0,0.0773464]
[1752264239559,0.00049551,117800.0,117790.0,0.06842787]
[1752264240568,0.44386498,117800.0,117790.0,0.06842787]
[1752264242330,0.44386498,117800.0,117790.0,0.04807578]
[1752264242920,0.44386498,117800.0,117790.0,0.04595336]
[1752264243768,0.44386498,117800.0,117790.0,0.04807578]
[1752264248554,0.00049551,117800.0,117790.0,0.04807578]
[1752264248831,0.00049551,117800.0,117790.0,0.16520571]
[1752264248963,0.00049551,117800.0,117790.0,0.60645276]
[1752264249162,0.00049551,117800.0,117790.0,0.16308329]
[1752264249386,0.00049551,117800.0,117790.0,0.16520571]
[1752264250466,0.00049551,117800.0,117790.0,0.19079508]
[1752264250839,0.00049551,117800.0,117790.0,0.18867266]
[1752264252242,0.51231125,117800.0,117790.0,0.15401266]
[1752264252442,0.51231125,117800.0,117790.0,0.13138329]
[1752264252671,0.54584125,117800.0,117790.0,0.17455336]
[1752264252869,0.54889125,117800.0,117790.0,0.17455336]
[1752264253380,0.99226072,117800.0,117790.0,0.17455336]
[1752264253552,0.99226072,117800.0,117790.0,0.04102336]
[1752264253740,0.99226072,117800.0,117790.0,0.17258336]
[1752264254345,0.54889125,117800.0,117790.0,0.17258336]
[1752264254545,0.54889125,117800.0,117790.0,0.17455336]
[1752264258578,0.54885125,117800.0,117790.0,0.17455336]
[1752264259053,0.54885125,117800.0,117790.0,0.17258336]
[1752264259280,0.99222072,117800.0,117790.0,0.17258336]
[1752264259521,0.99222072,117800.0,117790.0,0.04102336]
[1752264259731,0.99222072,117800.0,117790.0,0.17258336]
[1752264260158,0.99222072,117800.0,117790.0,0.13456]
[1752264260159,1.07765065,117800.0,117790.0,0.13456]
[1752264261968,1.07765065,117800.0,117790.0,0.13452]
[1752264262911,1.07765065,117800.0,117790.0,0.13352]
[1752264263536,1.07765065,117800.0,117790.0,0.13152]
[1752264265850,1.00420438,117800.0,117790.0,0.13152]
[1752264266136,1.00616438,117800.0,117790.0,0.16561212]
[1752264276410,1.34616438,117800.0,117790.0,0.02843606]
[1752264276648,1.36070523,117800.0,117790.0,0.02843606]
[1752264276928,0.0307,117790.0,117780.0,0.20348]
[1752264277142,0.90162283,117790.0,117780.0,0.20348]
[1752264277349,0.9045094,117790.0,117780.0,0.20348]
[1752264277557,0.9045094,117790.0,117780.0,0.335]
[1752264277769,0.9045094,117790.0,117780.0,0.36984575]
[1752264278186,0.9045094,117790.0,117780.0,0.23832575]
[1752264278393,0.5645094,117790.0,117780.0,0.36984575]
[1752264278566,0.91905025,117790.0,117780.0,0.23832575]
[1752264278765,0.91905025,117790.0,117780.0,0.36984575]
[1752264282234,0.57905025,117790.0,117780.0,0.36984575]
[1752264283458,0.04544085,117780.0,117770.0,0.0002]
[1752264283630,1.36261972,117780.0,117770.0,0.14493859]
[1752264289516,1.36261972,117780.0,117770.0,0.13168]
[1752264290056,1.76261972,117780.0,117770.0,0.13168]
[1752264291283,1.78760571,117780.0,117770.0,0.13168]
[1752264291486,1.78760571,117780.0,117770.0,0.145068]
[1752264292536,1.78860571,117780.0,117770.0,0.145068]
[1752264292938,1.78960571,117780.0,117770.0,0.145068]
[1752264297978,1.78960571,117780.0,117770.0,0.13168]
[1752264300365,1.38960571,117780.0,117770.0,0.13168]
[1752264301424,1.38960571,117780.0,117770.0,0.0002]
[1752264301637,1.38960571,117780.0,117770.0,0.13208]
[1752264303840,1.36156972,117780.0,117770.0,0.13414]
[1752264304053,1.36156972,117780.0,117770.0,0.148067]
[1752264308273,1.36449972,117780.0,117770.0,0.148067]
[1752264312014,1.36449972,117780.0,117770.0,0.146007]
[1752264312015,1.36156972,117780.0,117770.0,0.146007]
[1752264312214,1.35960972,117780.0,117770.0,0.019117]
[1752264312445,0.54534025,117780.0,117770.0,0.13691]
[1752264312672,0.5307994,117780.0,117770.0,0.13691]
[1752264312905,0.44536947,117780.0,117770.0,0.13691]
[1752264313134,0.44536947,117780.0,117770.0,0.16841]
[1752264313762,0.002,117780.0,117770.0,0.16841]
[1752264313951,0.44536947,117780.0,117770.0,0.18759378]
[1752264314186,0.44536947,117780.0,117770.0,0.185471]
[1752264316930,0.44336947,117790.0,117780.0,0.0441584]
[1752264317143,0.44336947,117790.0,117780.0,0.051471]
[1752264318174,0.44336947,117790.0,117780.0,0.052471]
[1752264318408,0.44336947,117790.0,117780.0,0.08115919]
[1752264319742,0.44336947,117790.0,117780.0,0.08315919]
[1752264320582,0.00204951,117810.0,117790.0,0.0329]
[1752264320788,0.88673894,117800.0,117790.0,0.23642]
[1752264320935,0.88673894,117800.0,117790.0,0.50533]
[1752264321136,0.88673894,117800.0,117790.0,0.56015766]
[1752264323415,0.88673894,117800.0,117790.0,0.56115766]
[1752264323866,0.88673894,117800.0,117790.0,0.56015766]
[1752264324042,0.88673894,117800.0,117790.0,0.52825766]
[1752264329045,0.00204951,117810.0,117790.0,0.52825766]
[1752264329227,0.03464951,117810.0,117800.0,0.0112584]
[1752264329425,0.03464951,117810.0,117800.0,0.0361058]
[1752264330281,0.92138845,117810.0,117800.0,0.0361058]
[1752264330482,0.92238845,117810.0,117800.0,0.0361058]
[1752264331095,0.92338845,117810.0,117800.0,0.0361058]
[1752264331333,0.92547845,117810.0,117800.0,0.0361058]
[1752264332550,0.92547845,117810.0,117800.0,0.0329658]
[1752264334837,0.92547845,117810.0,117800.0,0.0217074]
[1752264337535,0.92547845,117810.0,117800.0,0.0248474]
[1752264338621,0.92338845,117810.0,117800.0,0.0248474]
[1752264340264,0.44741898,117810.0,117800.0,0.04346964]
[1752264340479,0.44741898,117810.0,117800.0,0.05916964]
[1752264343894,0.44741898,117810.0,117800.0,0.02696964]
[1752264344099,0.44741898,117810.0,117800.0,0.0148474]
[1752264345017,0.92803845,117810.0,117800.0,0.0096574]
[1752264345224,0.032,117800.0,117790.0,0.52206766]
[1752264345433,0.92398894,117800.0,117790.0,0.52206766]
[1752264347371,0.92398894,117800.0,117790.0,0.52405766]
[1752264347812,0.92082894,117800.0,117790.0,0.52405766]
[1752264348016,0.92397894,117800.0,117790.0,0.52306766]
[1752264349231,0.92082894,117800.0,117790.0,0.52505766]
[1752264352895,0.92082894,117800.0,117790.0,0.39317766]
[1752264354062,0.92397894,117800.0,117790.0,0.39118766]
[1752264354852,0.92397894,117800.0,117790.0,0.33628]
[1752264355269,1.02394972,117800.0,117790.0,0.20452]
[1752264355684,1.02394972,117800.0,117790.0,0.33624]
[1752264360383,1.02079972,117800.0,117790.0,0.33823]
[1752264362072,0.88882894,117800.0,117790.0,0.34123]
[1752264362290,0.92112894,117800.0,117790.0,0.375353]
[1752264362748,0.92427894,117800.0,117790.0,0.33624]
[1752264362973,1.02424972,117800.0,117790.0,0.46768]
[1752264364297,1.02424972,117800.0,117790.0,0.26416]
[1752264369003,1.02424972,117800.0,117790.0,0.26615]
[1752264369227,1.02424972,117800.0,117790.0,0.293065]
[1752264369641,1.00655887,117800.0,117790.0,0.296065]
[1752264373796,1.00655887,117800.0,117790.0,0.293065]
[1752264374379,1.00970887,117800.0,117790.0,0.293065]
[1752264375686,1.00655887,117800.0,117790.0,0.293065]
[1752264376227,1.00655887,117800.0,117790.0,0.296195]
[1752264377645,0.43011289,117800.0,117790.0,0.296195]
[1752264377848,0.43011289,117800.0,117790.0,0.328095]
[1752264378258,0.87348236,117800.0,117790.0,0.328095]
[1752264379054,0.44336947,117800.0,117790.0,0.328095]
[1752264379280,0.00204951,117810.0,117790.0,0.328095]
[1752264379437,0.44336947,117800.0,117790.0,0.328095]
[1752264379654,0.44336947,117800.0,117790.0,0.324965]
[1752264380038,0.44336947,117800.0,117790.0,0.328095]
[1752264380687,0.00204951,117810.0,117790.0,0.328095]
[1752264380821,0.44336947,117800.0,117790.0,0.324965]
[1752264381533,0.44336947,117800.0,117790.0,0.328095]
[1752264387260,0.44336947,117800.0,117790.0,0.312695]
[1752264387897,0.44336947,117800.0,117790.0,0.329195]
[1752264388533,0.00204951,117810.0,117790.0,0.329195]
[1752264388754,0.44336947,117800.0,117790.0,0.326065]
[1752264389370,0.44336947,117800.0,117790.0,0.328195]
[1752264389798,0.00204951,117810.0,117800.0,0.0322]
[1752264390010,0.44541898,117810.0,117800.0,0.0701295]
[1752264390656,0.44541898,117810.0,117800.0,0.07225174]
[1752264390856,0.00204951,117810.0,117800.0,0.07225174]
[1752264391064,0.44541898,117810.0,117800.0,0.07225174]
[1752264393131,0.44541898,117810.0,117800.0,0.27573174]
[1752264393333,0.44541898,117810.0,117800.0,0.2736095]
[1752264393898,0.44541898,117810.0,117800.0,0.2573095]
[1752264395035,0.44541898,117810.0,117800.0,0.2414095]
[1752264396497,0.44737898,117810.0,117800.0,0.2414095]
[1752264396697,0.47897898,117810.0,117800.0,0.2382795]
[1752264396964,0.47897898,117810.0,117800.0,0.2414095]
[1752264397604,0.47701898,117810.0,117800.0,0.2414095]
[1752264399702,0.92637845,117810.0,117800.0,0.2362195]
[1752264399908,1.02039143,117810.0,117800.0,0.20348]
[1752264400110,1.03493228,117810.0,117800.0,0.33496]
[1752264400880,1.37493228,117810.0,117800.0,0.33496]
[1752264405890,0.38534085,117800.0,117770.0,0.0002]
[1752264406085,0.83067032,117780.0,117770.0,0.0002]
[1752264406290,0.83067032,117780.0,117770.0,0.13264]
[1752264406622,0.83067032,117780.0,117770.0,0.146124]
[1752264406623,1.27718979,117780.0,117770.0,0.146124]
[1752264407034,1.27718979,117780.0,117770.0,0.149124]
[1752264407235,1.27718979,117780.0,117770.0,0.149084]
[1752264407469,1.27718979,117780.0,117770.0,0.146084]
[1752264408649,1.27918979,117780.0,117770.0,0.146084]
[1752264409378,1.36461972,117780.0,117770.0,0.146084]
[1752264411074,1.36461972,117780.0,117770.0,0.013684]
[1752264411276,1.36461972,117780.0,117770.0,0.13252]
[1752264411702,1.36561972,117780.0,117770.0,0.13252]
[1752264412879,0.003,117780.0,117770.0,0.13765]
[1752264413126,0.78636947,117780.0,117770.0,0.13765]
[1752264414046,0.78436947,117780.0,117770.0,0.13765]
[1752264414255,0.78436947,117780.0,117770.0,0.1518473]
[1752264414459,0.78336947,117780.0,117770.0,0.1517273]
[1752264415833,0.79836947,117780.0,117770.0,0.1517273]
[1752264417520,0.78336947,117780.0,117770.0,0.1517273]
[1752264417730,0.78336947,117780.0,117770.0,0.1680273]
[1752264418143,0.78336947,117780.0,117770.0,0.17015008]
[1752264418854,0.78336947,117780.0,117770.0,0.15385008]
[1752264420263,0.78336947,117780.0,117770.0,0.17015008]
[1752264420468,0.44336947,117780.0,117770.0,0.17015008]
[1752264420677,0.44336947,117780.0,117770.0,0.18645008]
[1752264420906,0.44336947,117780.0,117770.0,0.1843273]
[1752264421568,0.44336947,117780.0,117770.0,0.1517273]
[1752264421769,0.44336947,117780.0,117770.0,0.15385008]
[1752264425377,0.47476947,117800.0,117770.0,0.18665008]
[1752264425596,0.44336947,117780.0,117770.0,0.1814973]
[1752264426200,0.44336947,117780.0,117770.0,0.1845273]
[1752264426635,0.44336947,117790.0,117770.0,0.23715723]
[1752264426844,0.44336947,117790.0,117780.0,0.0342226]
[1752264427050,0.44336947,117790.0,117780.0,0.06618758]
[1752264428033,0.44336947,117790.0,117780.0,0.20777442]
[1752264428229,0.44336947,117790.0,117780.0,0.20565182]
[1752264429444,0.44336947,117790.0,117780.0,0.19702498]
[1752264429648,0.44336947,117790.0,117780.0,0.19602498]
[1752264429848,0.44336947,117790.0,117780.0,0.19802498]
[1752264431110,0.44336947,117790.0,117780.0,0.19902498]
[1752264433038,0.44336947,117790.0,117780.0,0.40250498]
[1752264439518,0.44336947,117790.0,117780.0,0.37040498]
[1752264444545,0.47556947,117790.0,117780.0,0.37004498]
[1752264448159,0.45976947,117790.0,117780.0,0.37004498]
[1752264449345,0.0312,117800.0,117780.0,0.37004498]
[1752264449562,0.03324951,117810.0,117790.0,0.00321]
[1752264449773,0.03538951,117810.0,117800.0,0.13485]
[1752264449990,0.47875898,117810.0,117800.0,0.148656]
[1752264450879,0.03850951,117810.0,117800.0,0.148656]
[1752264451083,0.47875898,117810.0,117800.0,0.148656]
[1752264452338,0.47975898,117810.0,117800.0,0.148656]
[1752264452553,0.48075898,117810.0,117800.0,0.148656]
[1752264453415,0.48387898,117810.0,117800.0,0.148656]
[1752264456809,0.48387898,117810.0,117800.0,0.352096]
[1752264461826,0.48387898,117810.0,117800.0,0.219376]
[1752264462027,0.92724845,117810.0,117800.0,0.217246]
[1752264462216,0.92724845,117810.0,117800.0,0.350046]
[1752264462652,0.92724845,117810.0,117800.0,0.217246]
[1752264462853,1.36721923,117810.0,117800.0,0.217246]
[1752264462983,1.36721923,117810.0,117800.0,0.350046]
[1752264463960,1.36721923,117810.0,117800.0,0.20344]
[1752264464148,1.36721923,117810.0,117800.0,0.33632]
[1752264466168,1.36721923,117810.0,117800.0,0.20344]
[1752264466365,1.36721923,117810.0,117800.0,0.33632]
[1752264470901,1.83587453,117810.0,117800.0,0.33632]
[1752264471124,1.39250506,117810.0,117800.0,0.33632]
[1752264471496,1.79250506,117810.0,117800.0,0.33632]
[1752264471716,1.78650506,117810.0,117800.0,0.369952]
[1752264472120,1.78550506,117810.0,117800.0,0.369952]
[1752264472435,1.79050506,117810.0,117800.0,0.369952]
[1752264475880,1.79050506,117810.0,117800.0,0.33632]
[1752264476083,2.23387453,117810.0,117800.0,0.13288]
[1752264476982,1.79050506,117810.0,117800.0,0.13288]
[1752264477435,2.23387453,117810.0,117800.0,0.13288]
[1752264478614,1.79050506,117810.0,117800.0,0.13288]
[1752264478839,1.79050506,117810.0,117800.0,0.146168]
[1752264479028,2.23387453,117810.0,117800.0,0.146168]
[1752264480421,1.79050506,117810.0,117800.0,0.146168]
[1752264481891,1.79050506,117810.0,117800.0,0.13288]
[1752264482595,2.23387453,117810.0,117800.0,0.13288]
[1752264483025,0.35454085,117800.0,117780.0,0.002]
[1752264483216,1.0059923,117790.0,117780.0,0.002]
[1752264483423,1.00905887,117790.0,117780.0,0.002]
[1752264483636,1.00905887,117790.0,117780.0,0.01525889]
[1752264484227,1.00905887,117790.0,117780.0,0.14785889]
[1752264484432,1.00905887,117790.0,117780.0,0.16266478]
[1752264486200,0.12231993,117790.0,117780.0,0.16266478]
[1752264486404,0.56781283,117790.0,117780.0,0.16266478]
[1752264486604,0.5656894,117790.0,117780.0,0.16266478]
[1752264488207,1.00905887,117790.0,117780.0,0.16266478]
[1752264490563,1.00905887,117790.0,117780.0,0.14940589]
[1752264493635,1.36359972,117790.0,117780.0,0.002]
[1752264493855,1.36359972,117790.0,117780.0,0.13424]
[1752264494078,1.34582887,117790.0,117780.0,0.13637]
[1752264494313,0.8687994,117790.0,117780.0,0.15555]
[1752264494546,0.78336947,117790.0,117780.0,0.17185]
[1752264494768,0.78336947,117790.0,117780.0,0.18926728]
[1752264495914,0.78536947,117790.0,117780.0,0.18926728]
[1752264496145,0.78336947,117790.0,117780.0,0.18926728]
[1752264496381,0.78436947,117790.0,117780.0,0.18926728]
[1752264496941,0.78336947,117790.0,117780.0,0.18926728]
[1752264499062,0.78336947,117790.0,117780.0,0.15676728]
[1752264499817,1.36462972,117790.0,117780.0,0.15173728]
[1752264500017,0.92126025,117790.0,117780.0,0.15173728]
[1752264501017,0.92126025,117790.0,117780.0,0.15375728]
[1752264501864,0.91806025,117790.0,117780.0,0.15375728]
[1752264502824,0.89806025,117790.0,117780.0,0.15375728]
[1752264503093,0.90126025,117790.0,117780.0,0.15375728]
[1752264507684,0.90126025,117790.0,117780.0,0.15173728]
[1752264508136,1.34462972,117790.0,117780.0,0.15149728]
[1752264508338,0.90126025,117790.0,117780.0,0.15149728]
[1752264509229,0.90226025,117790.0,117780.0,0.15149728]
[1752264509456,0.90426025,117790.0,117780.0,0.15149728]
[1752264510073,0.90426025,117790.0,117780.0,0.15351728]
[1752264510501,0.90426025,117790.0,117780.0,0.15149728]
[1752264514745,0.323,117790.0,117780.0,0.15647728]
[1752264514950,0.76636947,117790.0,117780.0,0.17197728]
[1752264515617,0.76636947,117790.0,117780.0,0.15647728]
[1752264515992,0.003,117790.0,117780.0,0.18757728]
[1752264516204,0.44636947,117790.0,117780.0,0.18757728]
[1752264516607,0.44536947,117790.0,117780.0,0.18757728]
[1752264517750,0.44536947,117790.0,117780.0,0.18857728]
[1752264517904,0.44336947,117790.0,117780.0,0.18857728]
[1752264518755,0.44336947,117790.0,117780.0,0.18957728]
[1752264519732,0.44336947,117800.0,117780.0,0.18957728]
[1752264519945,0.44336947,117790.0,117780.0,0.15551728]
[1752264520104,0.44336947,117790.0,117780.0,0.15601279]
[1752264520503,0.44336947,117790.0,117780.0,0.18651279]
[1752264520687,0.44336947,117790.0,117780.0,0.18947279]
[1752264520903,0.04644085,117820.0,117790.0,0.0151]
[1752264521118,0.1044697,117830.0,117810.0,0.00202]
[1752264521334,0.34,117820.0,117810.0,0.00202]
[1752264521548,0.34,117820.0,117810.0,0.13674]
[1752264522195,0.78336947,117820.0,117810.0,0.13674]
[1752264522802,0.78536947,117820.0,117810.0,0.13674]
[1752264523015,0.78536947,117820.0,117810.0,0.15367622]
[1752264524267,0.78736947,117820.0,117810.0,0.15367622]
[1752264526193,0.78736947,117820.0,117810.0,0.16927622]
[1752264526397,0.44736947,117820.0,117810.0,0.15367622]
[1752264532579,0.46191032,117820.0,117810.0,0.15367622]
[1752264534250,0.47751032,117820.0,117810.0,0.15367622]
[1752264534505,0.47964032,117820.0,117810.0,0.15367622]
[1752264534709,0.49464032,117820.0,117810.0,0.15367622]
[1752264536906,1.02645972,117820.0,117810.0,0.01693622]
[1752264537107,1.02645972,117820.0,117810.0,0.14865622]
[1752264542545,1.02645972,117820.0,117810.0,0.01693622]
[1752264542758,0.04624085,117800.0,117790.0,0.01720728]
[1752264542972,0.04624085,117790.0,117780.0,0.00249551]
[1752264543186,0.13894421,117790.0,117780.0,0.00249551]
[1752264543378,0.13894421,117790.0,117780.0,0.13417551]
[1752264543585,1.36568315,117790.0,117780.0,0.14761306]
[1752264543802,1.36355972,117790.0,117780.0,0.14761306]
[1752264545210,1.36455972,117790.0,117780.0,0.14761306]
[1752264555540,1.39001972,117790.0,117780.0,0.14761306]
[1752264561980,1.39001972,117790.0,117780.0,0.01593306]
[1752264562190,1.39001972,117790.0,117780.0,0.13417551]
[1752264566275,0.94665025,117790.0,117780.0,0.13417551]
[1752264566456,0.90980025,117790.0,117780.0,0.13921551]
[1752264566888,0.88434025,117790.0,117780.0,0.13921551]
[1752264567343,0.91724025,117790.0,117780.0,0.13921551]
[1752264567547,0.91724025,117790.0,117780.0,0.15315706]
[1752264569741,0.91724025,117790.0,117780.0,0.15021706]
[1752264569944,0.91724025,117790.0,117780.0,0.15315706]
[1752264569945,0.47387078,117790.0,117780.0,0.15315706]
[1752264570213,0.91514025,117790.0,117780.0,0.15315706]
[1752264570438,0.89934025,117790.0,117780.0,0.15315706]
[1752264570587,0.91544025,117790.0,117780.0,0.15315706]
[1752264570951,0.91754025,117790.0,117780.0,0.15315706]
[1752264571848,0.91754025,117790.0,117780.0,0.15311706]
[1752264572393,0.91754025,117790.0,117780.0,0.15017706]
[1752264572834,1.36090972,117790.0,117780.0,0.15017706]
[1752264573486,0.91754025,117790.0,117780.0,0.15017706]
[1752264574025,0.92054025,117790.0,117780.0,0.15017706]
[1752264576580,1.36390972,117790.0,117780.0,0.15017706]
[1752264577120,0.91754025,117790.0,117780.0,0.15017706]
[1752264577248,0.91754025,117790.0,117780.0,0.15311706]
[1752264578107,0.91754025,117790.0,117780.0,0.15017706]
[1752264578502,0.91754025,117790.0,117780.0,0.15311706]
[1752264578882,0.88434025,117790.0,117780.0,0.15311706]
[1752264581917,0.44097078,117790.0,117780.0,0.15311706]
[1752264582126,0.44436947,117790.0,117780.0,0.18571706]
[1752264582543,0.45891032,117790.0,117780.0,0.18571706]
[1752264582719,0.44436947,117790.0,117780.0,0.18571706]
[1752264582930,0.45891032,117790.0,117780.0,0.18571706]
[1752264583542,0.45891032,117790.0,117780.0,0.18567706]
[1752264583742,0.45891032,117790.0,117780.0,0.05407706]
[1752264583976,0.45891032,117790.0,117780.0,0.17173551]
[1752264584580,0.45891032,117790.0,117780.0,0.15533551]
[1752264584960,0.45891032,117790.0,117780.0,0.13913551]
[1752264585878,0.45891032,117790.0,117780.0,0.15493551]
[1752264586969,0.45891032,117790.0,117780.0,0.17053551]
[1752264587183,0.45891032,117790.0,117780.0,0.18760906]
[1752264587908,0.44436947,117790.0,117780.0,0.18760906]
[1752264588119,0.44336947,117790.0,117780.0,0.15620906]
[1752264588336,0.44336947,117790.0,117780.0,0.18790906]
[1752264589579,0.01454085,117810.0,117790.0,0.0317]
[1752264589800,0.01666428,117810.0,117800.0,0.26514]
[1752264590007,0.01666428,117810.0,117800.0,0.26819]
[1752264590661,0.04886428,117810.0,117800.0,0.26819]
[1752264590885,1.27879958,117810.0,117800.0,0.26819]
[1752264591093,1.27667615,117810.0,117800.0,0.26819]
[1752264591287,1.27667615,117810.0,117800.0,0.30005809]
[1752264592004,1.24247615,117810.0,117800.0,0.30005809]
[1752264592398,1.24347615,117810.0,117800.0,0.30005809]
[1752264592706,1.24547615,117810.0,117800.0,0.30005809]
[1752264598487,0.90547615,117810.0,117800.0,0.30005809]
[1752264598726,0.4620085,117810.0,117800.0,0.30005809]
[1752264599551,0.7980085,117810.0,117800.0,0.30005809]
[1752264601217,0.00495,117830.0,117810.0,0.0152]
[1752264601218,0.0331,117830.0,117810.0,0.0152]
[1752264601428,0.002,117830.0,117820.0,0.4685]
[1752264601601,0.002,117830.0,117820.0,0.47155]
[1752264602659,0.4600085,117830.0,117820.0,0.47155]
[1752264602889,0.44546765,117830.0,117820.0,0.48675]
[1752264603098,0.002,117830.0,117820.0,0.63153646]
[1752264603526,0.44546765,117830.0,117820.0,0.63153646]
[1752264605364,0.44546765,117830.0,117820.0,0.63453646]
[1752264605938,0.44546765,117830.0,117820.0,0.63653646]
[1752264607385,0.44546765,117830.0,117820.0,0.66191432]
[1752264608697,0.44546765,117850.0,117820.0,1.22021432]
[1752264608913,0.43234317,117860.0,117850.0,0.0305]
[1752264609121,0.43234317,117860.0,117850.0,0.30057134]
[1752264609344,0.43234317,117860.0,117850.0,0.31524091]
[1752264610768,0.002,117870.0,117860.0,0.0309]
[1752264610986,0.002,117870.0,117860.0,0.03805116]
[1752264611189,0.44546765,117870.0,117860.0,0.03805116]
[1752264612041,0.003,117870.0,117860.0,0.03805116]
[1752264612265,0.44646765,117870.0,117860.0,0.06957697]
[1752264613338,0.44646765,117870.0,117860.0,0.07835651]
[1752264613594,0.003,117870.0,117860.0,0.50378644]
[1752264613796,0.002,117890.0,117880.0,0.0322]
[1752264613995,0.002,117890.0,117880.0,0.62515073]
[1752264614204,0.44559408,117890.0,117880.0,0.62607993]
[1752264615032,0.44559408,117890.0,117880.0,0.65208541]
[1752264615228,0.44659408,117890.0,117880.0,0.65208541]
[1752264615475,0.00312643,117890.0,117880.0,0.65208541]
[1752264615965,0.44659408,117890.0,117880.0,0.65208541]
[1752264616381,0.00312643,117890.0,117880.0,0.65208541]
[1752264616631,0.44659408,117890.0,117880.0,0.65208541]
[1752264619183,0.4465347,117890.0,117880.0,0.65208541]
[1752264619401,0.4465347,117890.0,117880.0,0.59387993]
[1752264619843,0.4465347,117890.0,117880.0,0.61950387]
[1752264620029,0.4465347,117890.0,117880.0,0.63510387]
[1752264620570,0.4465347,117890.0,117880.0,0.65070387]
[1752264621817,0.4465347,117890.0,117880.0,0.61950387]
[1752264623429,0.7865347,117890.0,117880.0,0.61950387]
[1752264626990,0.00306705,117890.0,117880.0,0.61950387]
[1752264627216,0.4465347,117890.0,117880.0,0.61950387]
[1752264627797,0.4465347,117890.0,117880.0,0.63530387]
[1752264628622,0.4465347,117890.0,117880.0,0.59387993]
[1752264629266,0.00306705,117890.0,117880.0,0.59387993]
[1752264629457,0.4465347,117890.0,117880.0,0.59387993]
[1752264631204,0.4793247,117890.0,117880.0,0.59387993]
[1752264631864,0.4772347,117890.0,117880.0,0.59387993]
[1752264632218,0.9402832,117890.0,117880.0,0.2034]
[1752264632434,1.2802832,117890.0,117880.0,0.33468]
[1752264632635,1.28871573,117890.0,117880.0,0.33468]
[1752264632842,1.37414566,117890.0,117880.0,0.33468]
[1752264633075,0.0322,117870.0,117860.0,0.20328]
[1752264633245,0.4952485,117870.0,117860.0,0.20328]
[1752264633568,0.8352485,117870.0,117860.0,0.20328]
[1752264633774,1.36414608,117870.0,117860.0,0.20328]
[1752264633972,1.36414608,117870.0,117860.0,0.2249328]
[1752264634179,1.36514608,117870.0,117860.0,0.3562128]
[1752264634586,1.36414608,117870.0,117860.0,0.3562128]
[1752264634797,1.36714608,117870.0,117860.0,0.3562128]
[1752264635004,0.91292359,117870.0,117860.0,0.3562128]
[1752264635649,0.48749366,117870.0,117860.0,0.2249328]
[1752264635864,0.48749366,117870.0,117860.0,0.3562128]
[1752264636636,0.05183085,117870.0,117860.0,0.3613228]
[1752264636859,0.03729,117870.0,117860.0,0.3581728]
[1752264637069,0.47000281,117870.0,117860.0,0.3581728]
[1752264640313,0.47000281,117870.0,117860.0,0.3613228]
[1752264640691,0.47000281,117870.0,117860.0,0.3581728]
[1752264642572,0.47295281,117870.0,117860.0,0.3562128]
[1752264642946,0.48749366,117870.0,117860.0,0.33456]
[1752264645023,0.48694399,117870.0,117860.0,0.33456]
[1752264645389,1.00508673,117870.0,117860.0,0.33456]
[1752264645815,0.57237392,117870.0,117860.0,0.33456]
[1752264646806,0.13966111,117870.0,117860.0,0.33456]
[1752264647033,0.48399399,117870.0,117860.0,0.37133082]
[1752264647252,0.46945314,117870.0,117860.0,0.37432082]
[1752264647466,0.46945314,117870.0,117850.0,0.01324815]
[1752264647467,0.356,117860.0,117850.0,0.01324815]
[1752264647632,1.24097647,117860.0,117850.0,0.14472815]
[1752264648053,1.25727647,117860.0,117850.0,0.14472815]
[1752264648522,0.47728078,117860.0,117850.0,0.14472815]
[1752264648739,1.3427064,117860.0,117850.0,0.15940097]
[1752264648948,1.3427064,117860.0,117850.0,0.15944097]
[1752264649119,1.3457064,117860.0,117850.0,0.15944097]
[1752264649927,1.3457064,117860.0,117850.0,0.02792097]
[1752264650140,1.3457064,117860.0,117850.0,0.13148]
[1752264651288,1.3467064,117860.0,117850.0,0.13148]
[1752264658970,0.0157,117840.0,117810.0,0.2034]
[1752264659179,0.43271281,117820.0,117810.0,0.2034]
[1752264659383,0.43271281,117820.0,117810.0,0.23898138]
[1752264659825,0.00503,117830.0,117810.0,0.23898138]
[1752264660027,0.03613,117830.0,117810.0,0.23898138]
[1752264660223,0.43271281,117820.0,117810.0,0.23910783]
[1752264660424,0.43271281,117820.0,117810.0,0.37074783]
[1752264660656,0.43271281,117820.0,117810.0,0.35749645]